bitfinex-derivatives/quotes_BTCF0:USTF0_20240905
["timestamp","ask_amount","ask_price","bid_price","bid_amount"]
[1725574279918,0.002,56034.0,56033.0,0.31753744]
[1725574280322,0.002,56034.0,56033.0,0.32506811]
[1725574280628,0.002,56034.0,56033.0,0.32206394]
[1725574280931,0.002,56034.0,56033.0,0.32306394]
[1725574281119,0.002,56034.0,56033.0,0.32506394]
[1725574281427,0.002,56034.0,56033.0,0.2360429]
[1725574281817,0.002,56034.0,56033.0,0.23604298]
[1725574286931,0.002,56034.0,56033.0,0.2360429]
[1725574287321,0.002,56034.0,56033.0,0.10005341]
[1725574289222,0.002,56034.0,56033.0,0.18930841]
[1725574290131,0.002,56034.0,56033.0,0.55010841]
[1725574291026,0.05500009,56034.0,56033.0,0.55010841]
[1725574291221,0.05500009,56034.0,56033.0,1.68550841]
[1725574291527,0.002,56034.0,56033.0,1.77476341]
[1725574291935,0.002,56034.0,56033.0,1.88476341]
[1725574294131,0.003,56034.0,56033.0,1.88176341]
[1725574294341,0.004,56034.0,56033.0,2.02573682]
[1725574294632,0.00026774,56044.0,56043.0,0.089239]
[1725574294837,0.00026774,56044.0,56043.0,0.16049773]
[1725574295834,0.00026774,56044.0,56043.0,0.16049236]
[1725574296632,0.00026774,56044.0,56043.0,0.089239]
[1725574296832,0.00226774,56044.0,56043.0,0.1604921]
[1725574297030,0.00226774,56044.0,56043.0,0.089239]
[1725574297334,0.00526774,56044.0,56043.0,0.1604921]
[1725574298032,0.00526774,56044.0,56043.0,0.089239]
[1725574298235,0.05526783,56044.0,56043.0,0.089239]
[1725574298628,0.00226774,56044.0,56043.0,0.1604921]
[1725574299131,0.00226774,56044.0,56043.0,0.089239]
[1725574299132,0.00026774,56044.0,56043.0,0.089239]
[1725574299336,0.05326783,56044.0,56043.0,0.089239]
[1725574299537,0.05326783,56044.0,56043.0,0.09492634]
[1725574300233,0.05326783,56044.0,56043.0,0.16617944]
[1725574300631,0.00026774,56044.0,56043.0,0.09492634]
[1725574300830,0.05333698,56044.0,56043.0,0.09492634]
[1725574301027,0.00026774,56044.0,56043.0,0.00568734]
[1725574301224,0.089239,56043.0,56042.0,0.0712531]
[1725574301424,0.091239,56043.0,56042.0,0.0712531]
[1725574301627,0.091239,56043.0,56041.0,0.1604951]
[1725574301834,0.14432675,56042.0,56041.0,0.1604951]
[1725574302133,0.091241,56042.0,56041.0,0.089242]
[1725574303134,0.091241,56042.0,56041.0,0.1605615]
[1725574303431,0.091241,56042.0,56041.0,0.1625615]
[1725574303837,0.091241,56042.0,56041.0,0.091242]
[1725574304937,0.16182925,56042.0,56041.0,0.004]
[1725574305627,0.091241,56042.0,56041.0,0.004]
[1725574306931,0.091241,56042.0,56041.0,0.05750533]
[1725574307127,0.180482,56042.0,56041.0,0.05750533]
[1725574307328,0.180482,56042.0,56041.0,0.004]
[1725574308042,0.183482,56042.0,56041.0,0.002]
[1725574308643,0.187482,56042.0,56041.0,0.003]
[1725574309038,0.187482,56042.0,56041.0,0.001]
[1725574309241,0.21641663,56042.0,56041.0,0.001]
[1725574310137,0.21641663,56042.0,56041.0,0.002]
[1725574311949,0.21641691,56042.0,56041.0,0.002]
[1725574312446,1.35173691,56042.0,56041.0,0.002]
[1725574312646,1.44097791,56042.0,56041.0,0.002]
[1725574313556,1.80177791,56042.0,56041.0,0.002]
[1725574314734,1.772843,56042.0,56041.0,0.002]
[1725574315541,0.637523,56042.0,56041.0,0.002]
[1725574315743,0.548282,56042.0,56041.0,0.002]
[1725574316341,0.6368964,56042.0,56041.0,0.002]
[1725574317348,0.61917093,56042.0,56041.0,0.002]
[1725574317851,0.548282,56042.0,56041.0,0.002]
[1725574318244,0.6191856,56042.0,56041.0,0.002]
[1725574319047,0.548282,56042.0,56041.0,0.002]
[1725574319343,0.61919158,56042.0,56041.0,0.05547594]
[1725574320752,1.15451158,56042.0,56041.0,0.05547594]
[1725574322244,1.24375258,56042.0,56041.0,0.05547594]
[1725574323144,1.15451158,56042.0,56041.0,0.05547594]
[1725574324048,0.61919158,56042.0,56041.0,0.05547594]
[1725574324251,0.098241,56042.0,56041.0,0.14471794]
[1725574324454,0.15141094,56042.0,56041.0,0.1625615]
[1725574324852,0.15141094,56042.0,56041.0,0.1625389]
[1725574325155,0.15141094,56042.0,56041.0,0.091242]
[1725574325547,0.06216994,56042.0,56041.0,0.16254703]
[1725574325749,0.06216994,56042.0,56041.0,0.091242]
[1725574325750,0.009,56042.0,56041.0,0.091242]
[1725574326146,0.06216994,56042.0,56041.0,0.091242]
[1725574326545,0.009,56042.0,56041.0,0.091242]
[1725574327053,0.06217207,56042.0,56041.0,0.091242]
[1725574327359,0.06217872,56042.0,56041.0,0.091242]
[1725574327553,0.009,56042.0,56041.0,0.16256132]
[1725574327854,0.009,56042.0,56041.0,0.091242]
[1725574331053,0.098241,56042.0,56041.0,0.091242]
[1725574332551,0.12717314,56042.0,56041.0,0.091242]
[1725574332859,0.098241,56042.0,56041.0,0.091242]
[1725574333255,0.12717309,56042.0,56041.0,0.091242]
[1725574334058,0.009,56042.0,56041.0,0.452042]
[1725574334252,0.18687345,56042.0,56041.0,0.452042]
[1725574334453,0.18687345,56042.0,56041.0,0.091242]
[1725574335263,0.18687345,56042.0,56041.0,0.452042]
[1725574335558,0.18687345,56042.0,56041.0,0.14474697]
[1725574335559,0.098241,56042.0,56041.0,0.14474697]
[1725574335858,0.098241,56042.0,56041.0,0.14474331]
[1725574336057,0.098241,56042.0,56041.0,0.091242]
[1725574336249,0.098241,56042.0,56041.0,0.14474287]
[1725574337069,0.098241,56042.0,56041.0,0.091242]
[1725574338656,0.009,56042.0,56041.0,0.091242]
[1725574339266,0.009,56042.0,56041.0,0.14474287]
[1725574339469,0.009,56042.0,56041.0,0.091242]
[1725574339760,0.009,56042.0,56041.0,0.16256326]
[1725574339963,0.009,56042.0,56041.0,0.091242]
[1725574340665,0.009,56042.0,56041.0,0.16256326]
[1725574344363,0.52992418,56042.0,56041.0,0.091242]
[1725574344667,1.172843,56042.0,56041.0,0.002]
[1725574344868,1.86147545,56042.0,56041.0,0.002]
[1725574345068,1.86143793,56042.0,56041.0,0.002]
[1725574345280,1.772843,56042.0,56041.0,0.002]
[1725574345572,1.26143252,56042.0,56041.0,0.001]
[1725574345769,1.172843,56042.0,56041.0,0.001]
[1725574346161,1.2614275,56042.0,56041.0,0.001]
[1725574346362,1.172843,56042.0,56041.0,0.002]
[1725574346856,1.171843,56042.0,56041.0,0.002]
[1725574347162,1.26042974,56042.0,56041.0,0.002]
[1725574347467,1.20077943,56042.0,56041.0,0.002]
[1725574347670,1.20777943,56042.0,56041.0,0.003]
[1725574347867,1.31777943,56042.0,56041.0,0.003]
[1725574348075,1.31777796,56042.0,56041.0,0.003]
[1725574348567,1.31777807,56042.0,56041.0,0.003]
[1725574348759,1.20777807,56042.0,56041.0,0.003]
[1725574348961,0.643523,56042.0,56041.0,0.003]
[1725574349161,0.58321659,56042.0,56041.0,0.003]
[1725574349368,0.64286576,56042.0,56041.0,0.003]
[1725574349871,0.58321796,56042.0,56041.0,0.003]
[1725574350071,0.64286334,56042.0,56041.0,0.003]
[1725574350376,0.64286896,56042.0,56041.0,0.003]
[1725574350567,0.554282,56042.0,56041.0,0.003]
[1725574351869,0.193482,56042.0,56041.0,0.003]
[1725574354177,0.2820662,56042.0,56041.0,0.003]
[1725574354677,0.26435533,56042.0,56041.0,0.003]
[1725574355070,0.643523,56042.0,56041.0,0.003]
[1725574355264,0.356996,56037.0,56036.0,5e-07]
[1725574355468,0.267759,56034.0,56033.0,0.00026774]
[1725574355669,0.630559,56034.0,56033.0,0.00026774]
[1725574355875,1.763959,56034.0,56033.0,0.00026774]
[1725574357675,1.873959,56034.0,56033.0,0.00026774]
[1725574358183,1.873959,56034.0,56033.0,0.00226774]
[1725574358789,2.234759,56034.0,56033.0,0.00226774]
[1725574358999,2.234759,56034.0,56033.0,0.00426774]
[1725574360396,2.30549332,56034.0,56033.0,0.00426774]
[1725574360791,2.234759,56034.0,56033.0,0.00426774]
[1725574361301,2.30547767,56034.0,56033.0,0.00426774]
[1725574362091,2.31104896,56034.0,56033.0,0.00426774]
[1725574362602,2.2692716,56034.0,56033.0,0.00426774]
[1725574363998,2.37538222,56034.0,56033.0,0.00426774]
[1725574364195,2.2692716,56034.0,56033.0,0.00426774]
[1725574364700,2.3585246,56034.0,56033.0,0.00426774]
[1725574365703,2.35852742,56034.0,56033.0,0.00426774]
[1725574369094,1.63692742,56034.0,56033.0,0.00426774]
[1725574369294,2.35852742,56034.0,56033.0,0.00426774]
[1725574369602,2.32958329,56034.0,56033.0,0.00426774]
[1725574369992,1.60798329,56034.0,56033.0,0.00426774]
[1725574370194,2.32958329,56034.0,56033.0,0.00426774]
[1725574371602,1.72958329,56034.0,56033.0,0.00426774]
[1725574372697,1.00798329,56034.0,56033.0,0.00426774]
[1725574372898,1.72958329,56034.0,56033.0,0.00426774]
[1725574374601,1.19418329,56034.0,56033.0,0.00426774]
[1725574376798,1.08418329,56034.0,56033.0,0.00426774]
[1725574377000,1.19418329,56034.0,56033.0,0.00426774]
[1725574377609,1.22312658,56034.0,56033.0,0.00426774]
[1725574378407,1.22312658,56034.0,56033.0,7.4e-07]
[1725574379803,1.3292372,56034.0,56033.0,7.4e-07]
[1725574380513,1.32923742,56034.0,56033.0,7.4e-07]
[1725574381303,1.2231268,56034.0,56033.0,7.4e-07]
[1725574384302,1.25760974,56034.0,56033.0,7.4e-07]
[1725574384509,1.2231268,56034.0,56033.0,7.4e-07]
[1725574385902,0.5015268,56034.0,56033.0,7.4e-07]
[1725574386109,1.2231268,56034.0,56033.0,7.4e-07]
[1725574389813,2.39300982,56034.0,56033.0,7.4e-07]
[1725574391617,2.39300982,56034.0,56031.0,0.006]
[1725574391618,0.357028,56032.0,56031.0,0.006]
[1725574391816,0.42045453,56032.0,56031.0,0.006]
[1725574392027,0.95785453,56032.0,56031.0,0.006]
[1725574392922,0.95785453,56032.0,56031.0,0.008]
[1725574393816,0.95785453,56032.0,56031.0,0.01]
[1725574394215,0.95785796,56032.0,56031.0,0.01]
[1725574394518,0.92337311,56032.0,56031.0,0.01]
[1725574394720,0.38797311,56032.0,56031.0,0.01]
[1725574395222,1.10957311,56032.0,56031.0,0.01]
[1725574395820,0.38797311,56032.0,56031.0,0.01]
[1725574396116,1.10957311,56032.0,56031.0,0.01]
[1725574398913,0.38797311,56032.0,56031.0,0.01]
[1725574399116,1.10957311,56032.0,56031.0,0.01]
[1725574399520,1.14405794,56032.0,56031.0,0.01]
[1725574401631,1.14405786,56032.0,56031.0,0.01]
[1725574402721,0.42245786,56032.0,56031.0,0.01]
[1725574402916,1.14405786,56032.0,56031.0,0.01]
[1725574407627,1.10957306,56032.0,56031.0,0.01]
[1725574411334,1.14405818,56032.0,56031.0,0.01]
[1725574412428,0.42245818,56032.0,56031.0,0.01]
[1725574412631,1.14405818,56032.0,56031.0,0.008]
[1725574412819,0.42445818,56032.0,56031.0,0.008]
[1725574413026,1.14605818,56032.0,56031.0,0.008]
[1725574413238,1.11157306,56032.0,56031.0,0.008]
[1725574413427,1.14605781,56032.0,56031.0,0.008]
[1725574413620,1.11457306,56032.0,56031.0,0.006]
[1725574414434,1.22457306,56032.0,56031.0,0.006]
[1725574415334,1.25905745,56032.0,56031.0,0.006]
[1725574415635,1.22457306,56032.0,56031.0,0.006]
[1725574416033,1.25905614,56032.0,56031.0,0.006]
[1725574416333,1.22457306,56032.0,56031.0,0.006]
[1725574417037,1.25905748,56032.0,56031.0,0.006]
[1725574417431,1.25905681,56032.0,56031.0,0.006]
[1725574418128,1.25905767,56032.0,56031.0,0.006]
[1725574418522,1.22457306,56032.0,56031.0,0.006]
[1725574418727,1.25905682,56032.0,56031.0,0.006]
[1725574422628,1.38357387,56032.0,56031.0,0.006]
[1725574423031,2.51897387,56032.0,56031.0,0.006]
[1725574423840,2.39445682,56032.0,56031.0,0.006]
[1725574424331,2.39445821,56032.0,56031.0,0.006]
[1725574424539,1.82445821,56032.0,56031.0,0.006]
[1725574430148,1.10285821,56032.0,56031.0,0.006]
[1725574430444,1.82445821,56032.0,56031.0,0.006]
[1725574431639,1.28905821,56032.0,56031.0,0.006]
[1725574437650,1.33277617,56032.0,56031.0,0.006]
[1725574439460,1.3327763,56032.0,56031.0,0.006]
[1725574444658,1.28905831,56032.0,56031.0,0.006]
[1725574447964,1.28906198,56032.0,56031.0,0.006]
[1725574448665,1.17906198,56032.0,56031.0,0.006]
[1725574448861,1.28906198,56032.0,56031.0,0.006]
[1725574450862,0.56746198,56032.0,56031.0,0.006]
[1725574451056,1.28906198,56032.0,56031.0,0.006]
[1725574451660,1.33278355,56032.0,56031.0,0.006]
[1725574451855,1.41306632,56032.0,56031.0,0.006]
[1725574452065,1.05980498,56032.0,56031.0,0.006]
[1725574452267,0.43123398,56032.0,56031.0,1.230658]
[1725574452566,0.20653398,56032.0,56031.0,1.230658]
[1725574452761,0.002,56037.0,56034.0,0.089253]
[1725574452762,0.11,56036.0,56034.0,0.089253]
[1725574453063,0.11,56036.0,56035.0,0.089252]
[1725574453569,0.11,56036.0,56035.0,1.224612]
[1725574454069,0.113,56036.0,56035.0,1.224612]
[1725574454368,0.12,56036.0,56035.0,1.225612]
[1725574454870,0.113,56036.0,56035.0,1.224612]
[1725574455072,0.119,56036.0,56035.0,1.225612]
[1725574455267,0.09742338,56036.0,56035.0,1.225612]
[1725574455465,0.009,56036.0,56035.0,1.225612]
[1725574456261,0.009,56036.0,56035.0,1.586412]
[1725574456662,0.07974894,56036.0,56035.0,1.586412]
[1725574457165,0.002,56037.0,56036.0,0.08925]
[1725574457363,0.002,56037.0,56036.0,0.98541]
[1725574457566,0.002,56037.0,56036.0,1.58541]
[1725574457979,0.002,56037.0,56036.0,1.67466]
[1725574458368,0.05503574,56037.0,56036.0,1.67466]
[1725574458668,0.05703657,56037.0,56036.0,1.67466]
[1725574459177,0.004,56037.0,56036.0,1.67466]
[1725574459766,0.004,56037.0,56036.0,1.78466]
[1725574460072,0.004,56037.0,56036.0,1.87391]
[1725574460073,0.0039,56037.0,56036.0,1.87391]
[1725574461178,1e-06,56037.0,56036.0,1.87391]
[1725574461367,0.00026774,56044.0,56043.0,0.178478]
[1725574461680,0.00026774,56044.0,56043.0,0.65820719]
[1725574461869,0.00026774,56044.0,56043.0,1.79348719]
[1725574463570,0.00326774,56044.0,56043.0,1.88372619]
[1725574464767,0.00326774,56044.0,56043.0,1.88472619]
[1725574465172,0.00026774,56044.0,56043.0,1.88372619]
[1725574465385,0.00326774,56044.0,56043.0,1.88372619]
[1725574465671,0.00326774,56044.0,56043.0,1.88272619]
[1725574466478,0.0042,56053.0,56043.0,1.88272619]
[1725574466479,0.0042,56053.0,56052.0,0.199225]
[1725574466780,0.089218,56057.0,56056.0,0.089218]
[1725574467277,0.089218,56057.0,56056.0,1.224378]
[1725574467466,0.089218,56057.0,56056.0,0.624378]
[1725574468778,0.089218,56057.0,56056.0,0.625378]
[1725574469278,0.090218,56057.0,56056.0,1.226378]
[1725574471184,0.14299315,56057.0,56056.0,1.226378]
[1725574471481,0.05377515,56057.0,56056.0,1.315596]
[1725574472065,0.05377515,56057.0,56056.0,0.715596]
[1725574472981,0.05377515,56057.0,56056.0,1.315596]
[1725574473171,0.001,56057.0,56056.0,1.315596]
[1725574474583,0.001,56057.0,56056.0,1.676396]
[1725574476273,0.001,56057.0,56056.0,1.08199988]
[1725574476472,0.001,56057.0,56056.0,1.68199988]
[1725574477271,0.089211,56061.0,56060.0,0.089212]
[1725574478081,0.450011,56061.0,56060.0,0.089212]
[1725574478580,0.451011,56061.0,56060.0,0.089212]
[1725574478774,0.090211,56061.0,56060.0,0.089212]
[1725574479283,0.451011,56061.0,56060.0,0.089212]
[1725574479582,0.090211,56061.0,56060.0,0.089212]
[1725574480291,0.089222,56056.0,56055.0,0.089218]
[1725574480473,0.089222,56056.0,56042.0,0.4138736]
[1725574480474,0.17845,56052.0,56045.0,0.0042]
[1725574480674,0.089241,56042.0,56041.0,0.093442]
[1725574480879,0.089241,56042.0,56038.0,0.089246]
[1725574480880,0.089246,56039.0,56038.0,0.089246]
[1725574481081,0.08925,56037.0,56035.0,0.089252]
[1725574481282,0.08925,56037.0,56033.0,0.11]
[1725574481283,0.08925,56037.0,56036.0,0.08925]
[1725574481671,0.08425,56037.0,56036.0,0.08925]
[1725574482286,0.07725,56037.0,56036.0,0.08925]
[1725574482581,0.07725,56037.0,56036.0,0.10325]
[1725574482989,0.13015059,56037.0,56036.0,0.10325]
[1725574484179,0.07825,56037.0,56036.0,0.09525]
[1725574484387,0.07825,56037.0,56036.0,0.10025]
[1725574484585,0.13126844,56037.0,56036.0,0.10025]
[1725574485294,0.07825,56037.0,56036.0,0.10025]
[1725574502303,0.1675,56037.0,56036.0,0.011]
[1725574502607,0.07825,56037.0,56036.0,0.10025]
[1725574504205,0.001,56037.0,56036.0,1.41411]
[1725574504396,0.001,56037.0,56036.0,1.82011]
[1725574504900,0.00026774,56042.0,56041.0,0.178484]
[1725574505102,0.00026774,56042.0,56041.0,0.702617]
[1725574505302,0.00026774,56042.0,56041.0,1.873846]
[1725574507910,0.00026774,56042.0,56041.0,1.87939103]
[1725574511605,0.00026774,56042.0,56041.0,1.96846444]
[1725574511800,0.00026774,56042.0,56041.0,1.87939103]
[1725574512012,0.05329659,56042.0,56041.0,1.87939103]
[1725574512208,0.00026774,56042.0,56041.0,1.87939103]
[1725574513605,0.00126774,56042.0,56041.0,1.89739103]
[1725574514009,0.05429659,56042.0,56041.0,1.95078427]
[1725574514208,0.00126774,56042.0,56041.0,1.89739103]
[1725574515719,0.00126774,56042.0,56041.0,1.53659103]
[1725574515910,0.00126774,56042.0,56041.0,2.25819103]
[1725574516316,0.00126774,56042.0,56041.0,2.31156516]
[1725574516713,0.00126774,56042.0,56041.0,2.25819103]
[1725574517021,0.00126774,56042.0,56041.0,2.31156516]
[1725574517926,0.00126774,56042.0,56041.0,2.25819103]
[1725574519916,0.00126774,56042.0,56041.0,2.34726444]
[1725574520114,0.00126774,56042.0,56041.0,2.48322733]
[1725574520824,0.00126774,56042.0,56041.0,2.48322732]
[1725574521927,0.00126774,56042.0,56041.0,2.48322696]
[1725574524019,0.00126774,56042.0,56041.0,1.76162696]
[1725574524216,0.00126774,56042.0,56041.0,1.67255355]
[1725574524421,0.00126774,56042.0,56041.0,2.39415355]
[1725574526932,0.00126774,56042.0,56041.0,2.48339555]
[1725574527115,0.0462,56047.0,56046.0,0.267702]
[1725574527321,0.0462,56047.0,56046.0,0.738502]
[1725574528425,0.0462,56047.0,56046.0,0.377702]
[1725574528614,0.0462,56047.0,56046.0,0.741502]
[1725574529926,0.0462,56047.0,56046.0,0.745502]
[1725574530828,0.0462,56047.0,56046.0,0.384702]
[1725574531023,0.0462,56047.0,56046.0,0.745502]
[1725574531817,0.09922885,56047.0,56046.0,0.745502]
[1725574532221,0.09922885,56047.0,56046.0,0.81671161]
[1725574532420,0.09922885,56047.0,56046.0,0.45591161]
[1725574532626,0.09922885,56047.0,56046.0,0.81671161]
[1725574532827,0.0462,56047.0,56046.0,0.745502]
[1725574535128,0.0462,56047.0,56046.0,0.88145889]
[1725574535630,0.0462,56047.0,56046.0,0.88145814]
[1725574540631,0.0462,56047.0,56046.0,0.52065734]
[1725574540935,0.0462,56047.0,56046.0,0.88145734]
[1725574542136,0.0462,56047.0,56046.0,0.745502]
[1725574548033,0.0462,56047.0,56046.0,0.97068718]
[1725574548541,0.09943679,56047.0,56046.0,0.97068718]
[1725574548837,0.09943679,56047.0,56046.0,0.88145666]
[1725574549229,0.09943679,56047.0,56046.0,0.97066635]
[1725574549230,0.0994362,56047.0,56046.0,0.97066635]
[1725574549433,0.0462,56047.0,56046.0,0.88145189]
[1725574549638,0.0994362,56047.0,56046.0,0.88145189]
[1725574550033,0.00156856,56047.0,56046.0,0.88145189]
[1725574550732,0.00156856,56047.0,56046.0,0.88144954]
[1725574552336,0.00156856,56047.0,56046.0,0.98849272]
[1725574552731,0.00156856,56047.0,56046.0,0.88144954]
[1725574553745,0.0464,56050.0,56049.0,0.178458]
[1725574554040,0.0464,56050.0,56049.0,0.31440554]
[1725574557029,0.0464,56050.0,56049.0,0.178458]
[1725574557732,0.1204714,56051.0,56050.0,0.178456]
[1725574558047,0.1204714,56051.0,56050.0,0.53825373]
[1725574558048,0.0497,56051.0,56050.0,0.53825373]
[1725574558244,0.00026774,56052.0,56051.0,0.356904]
[1725574558544,0.10622194,56066.0,56051.0,0.356904]
[1725574558545,0.07505873,56064.0,56053.0,0.089223]
[1725574558758,0.07095873,56067.0,56065.0,0.089204]
[1725574559046,0.07095873,56068.0,56067.0,0.089201]
[1725574559234,0.0462,56071.0,56070.0,0.089196]
[1725574559235,0.11715873,56071.0,56070.0,0.089196]
[1725574559433,0.11715873,56071.0,56070.0,0.559996]
[1725574559636,0.0462,56071.0,56070.0,0.559996]
[1725574560238,0.0462,56071.0,56070.0,0.6134107]
[1725574560542,0.0462,56071.0,56070.0,0.559996]
[1725574560747,0.0462,56071.0,56070.0,0.56899376]
[1725574561543,0.09931867,56071.0,56070.0,0.56899376]
[1725574561944,0.10531969,56071.0,56070.0,0.56999376]
[1725574562339,0.0522,56071.0,56070.0,0.56999376]
[1725574562544,0.10529311,56071.0,56070.0,0.56999376]
[1725574563239,0.10829311,56071.0,56070.0,0.57099376]
[1725574563439,0.0552,56071.0,56070.0,0.57099376]
[1725574563836,0.0552,56071.0,56070.0,0.451996]
[1725574564037,0.0552,56071.0,56070.0,0.3628]
[1725574564038,1.24333311,56071.0,56070.0,0.3628]
[1725574564233,1.279434,56071.0,56070.0,0.002]
[1725574569453,1.368628,56071.0,56070.0,0.002]
[1725574572648,0.768628,56071.0,56070.0,0.002]
[1725574572850,0.144394,56071.0,56070.0,0.002]
[1725574573350,0.0552,56071.0,56070.0,0.002]
[1725574573654,0.009,56071.0,56070.0,0.091196]
[1725574575741,0.009,56071.0,56070.0,0.1445655]
[1725574576443,0.009,56071.0,56070.0,0.091196]
[1725574576660,0.006,56071.0,56070.0,0.090196]
[1725574576955,0.009,56071.0,56070.0,0.201196]
[1725574577953,0.009,56071.0,56070.0,0.2545655]
[1725574578851,0.007,56071.0,56070.0,0.2545655]
[1725574579646,0.007,56071.0,56070.0,0.201196]
[1725574580155,0.007,56071.0,56070.0,0.002]
[1725574580156,0.096194,56071.0,56070.0,0.002]
[1725574581656,0.456994,56071.0,56070.0,0.002]
[1725574582246,0.48591279,56071.0,56070.0,0.002]
[1725574583752,0.57510679,56071.0,56070.0,0.002]
[1725574584355,0.48591279,56071.0,56070.0,0.002]
[1725574584556,0.57510679,56071.0,56070.0,0.002]
[1725574587262,0.546188,56071.0,56070.0,0.05533663]
[1725574588259,0.546188,56071.0,56070.0,0.002]
[1725574588463,0.635382,56071.0,56070.0,0.002]
[1725574588758,0.267597,56068.0,56067.0,0.0534631]
[1725574588957,0.267597,56068.0,56065.0,0.00026774]
[1725574588958,0.178404,56066.0,56065.0,0.05938205]
[1725574589260,0.178404,56066.0,56065.0,0.00026774]
[1725574589563,1.49128404,56066.0,56065.0,0.00026774]
[1725574589754,1.43161006,56066.0,56065.0,0.00026774]
[1725574590069,1.43161025,56066.0,56065.0,0.00026774]
[1725574590453,1.49128096,56066.0,56065.0,0.00026774]
[1725574591157,1.404686,56066.0,56065.0,0.00026774]
[1725574591357,1.49902495,56066.0,56065.0,0.00026774]
[1725574591553,1.45942999,56066.0,56065.0,0.00026774]
[1725574592161,1.55002495,56066.0,56065.0,0.00026774]
[1725574592457,1.46142999,56066.0,56065.0,0.00026774]
[1725574593754,0.86142999,56066.0,56065.0,0.00026774]
[1725574594062,0.004,56066.0,56065.0,0.17867574]
[1725574594361,0.004,56066.0,56065.0,0.62455174]
[1725574594662,0.004,56066.0,56065.0,0.80289353]
[1725574594962,0.004,56066.0,56065.0,0.85507959]
[1725574595162,0.09339,56074.0,56071.0,0.089193]
[1725574595364,0.09339,56074.0,56072.0,0.0471]
[1725574595365,0.08919,56074.0,56072.0,0.0471]
[1725574595669,0.00026774,56076.0,56075.0,0.089188]
[1725574595853,0.0041,56090.0,56086.0,0.089171]
[1725574596053,0.05315077,56092.0,56089.0,0.07118543]
[1725574596350,0.05315077,56092.0,56088.0,0.089167]
[1725574596351,0.089158,56094.0,56091.0,0.07118207]
[1725574596559,0.08916,56093.0,56089.0,0.07118207]
[1725574596758,0.002,56090.0,56089.0,0.07118207]
[1725574596959,0.002,56090.0,56088.0,0.16034907]
[1725574597268,0.002,56089.0,56088.0,0.16034907]
[1725574597459,0.002,56089.0,56088.0,0.089167]
[1725574598160,0.002,56089.0,56088.0,0.09468435]
[1725574598362,0.002,56089.0,56088.0,0.09568435]
[1725574598660,0.002,56089.0,56088.0,0.001]
[1725574599252,0.091166,56089.0,56088.0,0.05429779]
[1725574599454,0.091166,56089.0,56088.0,0.001]
[1725574599857,0.093166,56089.0,56088.0,0.002]
[1725574600158,0.453966,56089.0,56088.0,0.05529779]
[1725574600358,0.453966,56089.0,56088.0,0.002]
[1725574603668,1.078012,56089.0,56088.0,0.002]
[1725574604460,1.678012,56089.0,56088.0,0.002]
[1725574605668,1.078012,56089.0,56088.0,0.002]
[1725574606068,0.453966,56089.0,56088.0,0.091167]
[1725574606264,0.54230675,56089.0,56088.0,0.091167]
[1725574606464,0.3648,56089.0,56088.0,0.091167]
[1725574607665,0.3648,56089.0,56088.0,0.09688867]
[1725574614582,0.004,56089.0,56088.0,0.09688867]
[1725574615375,0.004,56089.0,56088.0,1.41010267]
[1725574617172,0.004,56089.0,56088.0,1.32093567]
[1725574621179,0.004,56089.0,56088.0,1.41010267]
[1725574621373,0.004,56089.0,56088.0,1.32093567]
[1725574621579,0.004,56089.0,56088.0,1.46329498]
[1725574621978,0.004,56089.0,56088.0,1.41010267]
[1725574622184,0.00026751,56095.0,56089.0,0.624046]
[1725574622387,0.00026751,56095.0,56094.0,0.458316]
[1725574622879,0.00026751,56095.0,56094.0,0.507516]
[1725574623582,0.00026751,56095.0,56094.0,0.56076721]
[1725574623982,0.00426751,56095.0,56094.0,0.39176721]
[1725574624377,0.00626751,56095.0,56094.0,0.39276721]
[1725574625274,0.00626751,56095.0,56094.0,0.339516]
[1725574626691,0.09542351,56095.0,56094.0,0.002]
[1725574626882,0.18457951,56095.0,56094.0,0.002]
[1725574627097,0.178328,56090.0,56089.0,0.12444503]
[1725574627275,0.559964,56090.0,56087.0,0.05333585]
[1725574627479,0.559964,56090.0,56084.0,0.00446751]
[1725574627480,0.178342,56086.0,56085.0,0.05333585]
[1725574627675,0.180342,56086.0,56085.0,0.05333585]
[1725574627883,0.178342,56086.0,56085.0,0.05333585]
[1725574628083,0.178344,56085.0,56084.0,0.00026751]
[1725574628686,0.180344,56085.0,56084.0,0.00026751]
[1725574628873,0.715264,56085.0,56084.0,0.00026751]
[1725574630675,0.715264,56085.0,56084.0,0.00326751]
[1725574630886,1.076064,56085.0,56084.0,0.00326751]
[1725574631284,1.076064,56085.0,56084.0,0.00026751]
[1725574631285,0.451972,56085.0,56084.0,0.00026751]
[1725574631485,0.459972,56085.0,56084.0,0.00026751]
[1725574632489,1.594892,56085.0,56084.0,0.00026751]
[1725574633778,1.684064,56085.0,56084.0,0.00026751]
[1725574635884,0.3708,56085.0,56084.0,0.08944151]
[1725574637592,0.3708,56085.0,56084.0,0.00026751]
[1725574637593,0.459972,56085.0,56084.0,0.00026751]
[1725574637896,0.455972,56085.0,56084.0,0.00026751]
[1725574638194,0.451972,56085.0,56084.0,0.00326751]
[1725574638696,0.451972,56085.0,56084.0,0.00226751]
[1725574639791,0.451972,56085.0,56084.0,0.00026751]
[1725574640592,0.453972,56085.0,56084.0,0.00026751]
[1725574640788,0.093172,56085.0,56084.0,0.00026751]
[1725574641292,0.094172,56085.0,56084.0,0.00026751]
[1725574642086,0.095172,56085.0,56084.0,0.00026751]
[1725574642689,0.095172,56085.0,56084.0,0.05356814]
[1725574642990,0.095172,56085.0,56084.0,0.00026751]
[1725574643191,0.455972,56085.0,56084.0,0.05356836]
[1725574643390,0.455972,56085.0,56084.0,0.00026751]
[1725574644800,0.3668,56085.0,56084.0,0.08944151]
[1725574645406,0.3668,56085.0,56084.0,0.14273864]
[1725574645995,0.3668,56085.0,56084.0,0.08944151]
[1725574647192,0.3668,56085.0,56084.0,0.14274172]